bitfinex/quotes_ETHUSD_20220101
["timestamp","ask_amount","ask_price","bid_price","bid_amount"]
[1641062030069,3.03585839,3745.2,3744.3,0.00397897]
[1641062031572,3.03585839,3745.2,3744.5,0.6676982]
[1641062031973,3.03585839,3745.2,3744.6,0.0022737]
[1641062032574,3.03585839,3745.2,3744.5,0.00284212]
[1641062033035,3.03585839,3745.2,3744.3,2.18957578]
[1641062033239,3.03585839,3745.2,3744.7,0.66762]
[1641062033433,3.03585839,3745.2,3744.8,2.51416232]
[1641062033832,3.03585839,3745.2,3745.0,15.6]
[1641062034035,3.03585839,3745.2,3745.0,0.383]
[1641062034231,3.03585839,3745.2,3745.0,1.0504549]
[1641062034431,3.03585839,3745.2,3745.0,2.3854149]
[1641062034833,0.00113684,3745.2,3745.0,17.9854149]
[1641062035135,0.00113684,3745.2,3745.0,2.3854149]
[1641062035738,0.00113684,3745.2,3745.0,3.0528247]
[1641062036973,0.00113684,3745.2,3744.4,1.33519]
[1641062036974,6.26237362,3745.1,3744.4,1.33519]
[1641062037172,8.85355541,3745.1,3744.4,1.33519]
[1641062037370,8.85355541,3745.1,3744.1,0.383]
[1641062037371,0.00341054,3745.0,3744.1,0.383]
[1641062037770,0.00284211,3744.9,3744.2,0.00113685]
[1641062037973,0.00284211,3744.9,3744.2,0.66883685]
[1641062038174,0.00227369,3744.8,3744.2,0.66883685]
[1641062038575,0.00170527,3744.7,3744.2,0.66883685]
[1641062038977,0.00113684,3744.6,3744.2,0.66883685]
[1641062039177,0.00113684,3744.6,3744.2,0.00113685]
[1641062039377,3.98483652,3745.0,3744.2,0.00113685]
[1641062039378,3.03480539,3744.8,3744.2,0.00113685]
[1641062039777,0.00170527,3744.7,3744.1,0.00170527]
[1641062040177,0.00113684,3744.6,3744.1,0.00170527]
[1641062040619,3.03480539,3744.7,3743.8,0.00341054]
[1641062040823,3.75,3744.6,3743.7,1.29002329]
[1641062041024,3.75113684,3744.6,3743.7,1.29002329]
[1641062041221,0.00397896,3744.5,3743.9,0.66774]
[1641062041620,0.00341054,3744.4,3743.9,0.66774]
[1641062042021,0.00284211,3744.3,3743.9,0.66774]
[1641062042222,0.00284211,3744.3,3743.9,2.15146746]
[1641062042425,0.00227369,3744.2,3743.9,1.48375746]
[1641062042823,0.00170527,3744.1,3743.9,1.48375746]
[1641062043223,0.00113684,3744.0,3743.9,1.43375746]
[1641062043425,0.00113684,3744.0,3743.9,2.10144746]
[1641062045968,0.00113684,3744.0,3743.9,1.33375746]
[1641062046171,0.00113684,3744.0,3743.9,4.18375746]
[1641062046367,0.00113684,3744.0,3743.9,1.33375746]
[1641062046970,0.00113684,3744.0,3743.9,4.38375746]
[1641062047169,0.00113684,3744.0,3743.9,4.68375746]
[1641062047370,0.00113684,3744.0,3743.9,1.33375746]
[1641062049027,0.00113684,3744.0,3743.9,3.73375746]
[1641062049525,0.00113684,3744.0,3743.9,1.33375746]
[1641062049725,0.0045498,3744.3,3743.9,1.33375746]
[1641062049926,0.0045498,3744.3,3743.9,2.00147746]
[1641062050125,0.00113685,3744.2,3743.9,1.33375746]
[1641062050727,0.00113685,3744.2,3743.9,17.53375746]
[1641062050926,0.00113685,3744.2,3744.0,18.2038197]
[1641062051125,0.00113685,3744.2,3744.1,0.3]
[1641062051527,0.50113685,3744.2,3744.1,0.3]
[1641062052463,0.50113685,3744.2,3744.0,18.8715097]
[1641062052667,0.50113685,3744.2,3744.0,3.2715097]
[1641062054168,0.50113685,3744.2,3744.1,15.6]
[1641062054968,0.50113685,3744.2,3744.0,3.5715097]
[1641062055414,0.50113685,3744.2,3744.1,5.283]
[1641062055618,0.50113685,3744.2,3744.1,15.983]
[1641062056625,0.50113685,3744.2,3744.1,0.383]
[1641062057624,0.50113685,3744.2,3744.1,15.983]
[1641062058025,0.50113685,3744.2,3744.1,0.383]
[1641062058426,0.50113685,3744.2,3744.1,15.983]
[1641062059170,0.50113685,3744.2,3744.1,0.383]
[1641062059572,0.50113685,3744.2,3744.0,1.33524]
[1641062059773,0.50113685,3744.2,3743.1,0.383]
[1641062060172,0.50113685,3744.2,3743.2,0.00454739]
[1641062060772,0.50113685,3744.2,3743.7,0.66778]
[1641062060773,3.03567915,3744.1,3743.7,0.66778]
[1641062060972,3.03567915,3744.1,3743.7,0.96778]
[1641062061172,3.03567915,3744.1,3743.8,0.00113684]
[1641062061575,0.50113685,3744.2,3743.8,0.00113684]
[1641062061775,0.50113685,3744.2,3743.6,0.00227369]
[1641062061976,0.50113685,3744.2,3743.8,1.9363814]
[1641062062173,0.50113685,3744.2,3743.8,1.2686614]
[1641062062676,0.50113685,3744.2,3743.9,0.66772]
[1641062063511,0.50113685,3744.2,3743.9,1.33544]
[1641062064913,0.50113685,3744.2,3743.9,0.66772]
[1641062065212,0.50113685,3744.2,3743.7,1.33538]
[1641062065612,0.50113685,3744.2,3743.8,0.66893684]
[1641062065812,0.45113685,3744.2,3743.8,0.66893684]
[1641062066212,0.45113685,3744.2,3743.9,0.00170527]
[1641062067069,0.45113685,3744.2,3743.8,0.61950527]
[1641062067270,0.00113685,3744.1,3743.8,0.61950527]
[1641062069073,3.0367845,3744.1,3743.8,0.61950527]
[1641062070174,1.0,3744.0,3743.1,1.33571]
[1641062070715,3.03564765,3743.9,3743.2,0.67186897]
[1641062071113,3.03564765,3743.9,3743.3,0.00341054]
[1641062071716,3.03564765,3743.9,3743.2,0.6679]
[1641062071920,3.03564765,3743.9,3743.0,0.00511581]
[1641062072119,3.03564765,3743.9,3743.3,0.00341054]
[1641062072316,3.03564765,3743.9,3742.8,1.33574]
[1641062072518,3.03564765,3743.9,3743.4,0.6678154]
[1641062072716,3.03564765,3743.9,3743.5,0.66784]
[1641062072917,3.03564765,3743.9,3743.5,0.6701137]
[1641062073119,3.03564765,3743.9,3743.6,0.00170527]
[1641062073519,3.03564765,3743.9,3743.3,0.00341054]
[1641062073719,3.03564765,3743.9,3743.1,2.6713888]
[1641062074168,3.03564765,3743.9,3743.1,2.00353]
[1641062074368,3.03564765,3743.9,3743.1,1.33564]
[1641062074574,3.03564765,3743.9,3743.2,0.66786]
[1641062074777,0.00113685,3744.1,3743.2,0.66786]
[1641062074778,3.03564765,3744.0,3743.2,0.66786]
[1641062074975,3.03564765,3744.0,3743.3,0.00341054]
[1641062075373,3.03564765,3744.0,3743.3,0.67128054]
[1641062075574,3.0367845,3744.1,3743.3,0.67128054]
[1641062075774,3.0367845,3744.1,3743.4,0.00284212]
[1641062075974,1.0,3744.0,3743.4,0.00284212]
[1641062076376,1.0,3744.0,3743.1,0.00454739]
[1641062076578,3.08860947,3743.9,3743.1,0.67250739]
[1641062076975,1.0,3743.8,3743.1,0.67250739]
[1641062077174,2.94865715,3743.7,3743.1,0.67250739]
[1641062077577,0.93742844,3743.4,3743.1,0.00454739]
[1641062077777,1.0,3743.6,3743.1,0.00454739]
[1641062077778,3.01608528,3743.5,3743.1,0.00454739]
[1641062078013,3.01608528,3743.5,3742.4,6.15]
[1641062078014,2.93440709,3743.5,3742.5,0.00795793]
[1641062078616,4.70380765,3743.4,3742.5,0.00795793]
[1641062078814,3.20317362,3743.3,3742.5,0.00795793]
[1641062079215,1.0,3743.2,3742.5,0.00795793]
[1641062079416,2.88236315,3743.1,3742.5,0.00795793]
[1641062079617,2.88236315,3743.1,3742.4,6.15]
[1641062079618,0.66815,3743.1,3742.4,6.15]
[1641062079817,6.25,3743.1,3742.4,4.79133715]
[1641062080019,0.00284212,3743.0,3741.8,1.33621]
[1641062080218,1.00284212,3743.0,3741.8,1.33621]
[1641062080420,0.00227369,3742.9,3741.9,0.00341054]
[1641062080617,0.00227369,3742.9,3741.9,1.02115564]
[1641062080817,0.00170527,3742.8,3742.1,1.33609]
[1641062081217,0.00170527,3742.8,3742.0,0.00284212]
[1641062081218,0.00113685,3742.7,3742.2,0.00170527]
[1641062081670,3.03792134,3742.9,3742.0,0.00284212]
[1641062081870,3.03792134,3742.9,3742.3,0.66802]
[1641062082072,0.00170527,3742.8,3742.5,0.9877258]
[1641062082472,0.00113685,3742.7,3742.5,0.9877258]
[1641062082871,3.03735292,3742.8,3742.5,0.9877258]
[1641062083274,0.00113685,3742.7,3742.2,1.33599]
[1641062083676,0.00113685,3742.7,3742.3,0.00113685]
[1641062084474,0.00113685,3742.7,3742.3,0.66920685]
[1641062084674,0.00113685,3742.7,3742.3,1.48926171]
[1641062087516,0.00113685,3742.7,3742.4,0.668]
[1641062087717,0.00113685,3742.7,3742.4,0.668016]
[1641062087920,0.00113685,3742.7,3742.5,0.66805]
[1641062090567,0.00113685,3742.7,3742.3,1.48927171]
[1641062091366,0.00113685,3742.7,3742.3,2.15732011]
[1641062091568,0.00113685,3742.7,3742.4,0.66805]
[1641062093017,0.00113685,3742.7,3742.3,0.82119171]
[1641062094516,0.00113685,3742.7,3742.4,2.00402]
[1641062095722,0.00113685,3742.7,3742.4,1.33601]
[1641062096766,0.00113685,3742.7,3742.4,2.00402]
[1641062097764,0.00113685,3742.7,3742.4,3.3399573]
[1641062097973,0.00113685,3742.7,3742.5,1.35099]
[1641062098170,0.00113685,3742.7,3742.6,15.6]
[1641062098374,3.685e-05,3742.7,3742.6,15.983]
[1641062098573,5.06402232,3744.7,3742.8,21.85]
[1641062098574,12.64022232,3744.7,3742.8,21.85]
[1641062098772,12.64022232,3744.7,3742.6,0.76097122]
[1641062098773,0.0576,3744.6,3743.6,0.66771]
[1641062098972,0.00795793,3744.1,3743.6,2.0032643]
[1641062099173,0.00795793,3744.1,3743.9,0.6677758]
[1641062099373,1.78684138,3745.7,3744.0,8.37600667]
[1641062099573,1.78684138,3745.7,3744.0,8.67600667]
[1641062099772,1.78684138,3745.7,3744.3,6.25]
[1641062099971,1.78684138,3745.7,3744.7,2.002439]
[1641062100172,0.00454739,3745.3,3745.0,0.66749]
[1641062100432,0.00454739,3745.3,3745.0,1.3349832]
[1641062100629,0.00397896,3745.2,3745.0,1.3349832]
[1641062101032,1.30492232,3746.3,3745.0,1.3349832]
[1641062101033,0.00341054,3745.1,3745.0,1.3349832]
[1641062101229,0.00341054,3745.1,3745.0,2.0179832]
[1641062101428,0.00341054,3745.1,3745.0,18.2440832]
[1641062102028,0.00341054,3745.1,3745.0,18.99286996]
[1641062102630,0.00341054,3745.1,3745.0,16.59286996]
[1641062102828,0.00341054,3745.1,3745.0,1.04878676]
[1641062103032,0.05380527,3745.4,3745.1,6.25]
[1641062103232,0.05380527,3745.4,3745.2,3.69795202]
[1641062103433,0.05380527,3745.4,3745.3,2.65821739]
[1641062103834,0.05551054,3745.4,3745.3,2.65821739]
[1641062105264,0.00170527,3745.4,3745.2,17.3178314]
[1641062105467,0.00170527,3745.4,3745.3,21.85]
[1641062105667,0.05380488,3745.7,3745.3,22.15]
[1641062105868,0.05380488,3745.7,3745.5,0.66736]
[1641062106168,0.00284212,3745.6,3745.5,2.66945]
[1641062106366,0.00284212,3745.6,3745.5,18.26945]
[1641062106969,3.03738234,3745.6,3745.5,18.26945]
[1641062107772,3.03738234,3745.6,3744.1,0.00227369]
[1641062108030,0.0120072,3745.3,3744.1,0.00227369]
[1641062108230,0.0120072,3745.3,3743.9,0.00682108]
[1641062108429,0.0120072,3745.3,3743.8,6.15]
[1641062108430,0.0120072,3745.3,3744.1,0.00568423]
[1641062108627,0.0120072,3745.3,3743.9,0.00682108]
[1641062108628,1.05747159,3744.9,3743.9,0.00682108]
[1641062109131,1.30492232,3745.1,3743.9,0.00682108]
[1641062109528,1.30492232,3745.1,3744.3,0.66765]
[1641062109932,1.30492232,3745.1,3744.4,0.00397896]
[1641062110631,4.06959552,3745.1,3744.5,0.66758]
[1641062110831,2.7646732,3745.1,3744.4,0.00397896]
[1641062111027,3.8064,3745.2,3744.6,0.00284212]
[1641062111231,1.05636603,3745.3,3743.5,0.66782]
[1641062111433,1.05636603,3745.3,3743.6,0.00852635]
[1641062111434,1.0,3745.1,3743.6,0.00852635]
[1641062111676,0.66778,3745.1,3743.6,0.00852635]
[1641062111891,0.66778,3745.1,3743.8,15.6]
[1641062111892,2.7,3745.1,3743.8,15.6]
[1641062112077,2.7,3745.1,3744.3,0.66764]
[1641062112378,2.7,3745.1,3744.4,0.00397896]
[1641062112983,2.7,3745.1,3744.1,1.5332508]
[1641062113181,2.7,3745.1,3744.7,0.66763]
[1641062113386,0.00227369,3745.5,3744.2,2.67560501]
[1641062113585,0.01225727,3745.1,3744.8,0.00170527]
[1641062113785,0.01225727,3745.1,3744.3,0.00454739]
[1641062113987,0.00170527,3745.4,3744.3,0.00454739]
[1641062114283,0.00113685,3745.3,3744.3,0.00454739]
[1641062114684,0.8354506,3745.2,3744.3,0.00454739]
[1641062117334,0.66998369,3745.5,3744.3,0.00454739]
[1641062117735,0.66778,3745.2,3744.3,0.00454739]
[1641062117937,0.00170527,3745.4,3744.1,0.00568423]
[1641062118136,0.00227369,3745.5,3744.1,0.00568423]
[1641062118436,0.00170527,3745.4,3744.1,0.00568423]
[1641062118635,0.00170527,3745.4,3744.7,0.8238543]
[1641062118835,0.00113685,3745.3,3744.7,2.8265343]
[1641062119038,0.00113685,3745.3,3744.8,0.66923527]
[1641062119268,0.00511581,3746.0,3744.8,0.00170527]
[1641062119469,0.01711581,3746.1,3745.0,3.35]
[1641062119670,3.63512349,3746.6,3744.8,0.00682108]
[1641062119671,10.20289895,3746.6,3744.8,0.00682108]
[1641062119868,8.2743241,3746.6,3745.4,0.83565268]
[1641062120072,0.00170527,3746.3,3745.4,0.83565268]
[1641062120270,0.00170527,3746.3,3745.5,0.00284212]
[1641062120469,0.00113685,3746.2,3745.5,0.00284212]
[1641062120670,6.25,3746.1,3744.7,1.33502]
[1641062120872,6.25341054,3746.1,3745.1,0.00227369]
[1641062121072,0.00284212,3746.0,3745.1,0.00227369]
[1641062121469,0.0022737,3745.9,3745.2,0.9530073]
[1641062121870,0.00170527,3745.8,3745.3,0.00113684]
[1641062122271,0.00113685,3745.7,3745.3,0.00113684]
[1641062122671,0.00511582,3746.4,3745.4,2.0023016]
[1641062122921,0.00511582,3746.4,3745.4,1.33487]
[1641062123127,0.00454739,3746.3,3745.3,16.20113684]
[1641062123527,0.00397897,3746.2,3745.6,0.6674]
[1641062123724,0.00397897,3746.2,3745.8,0.66734]
[1641062123925,0.00341054,3746.1,3745.8,0.66734]
[1641062124124,0.00341054,3746.1,3745.9,1.02169044]
[1641062124330,0.00284212,3746.0,3745.9,1.02169044]
[1641062125125,0.00284212,3746.0,3745.9,4.02169044]
[1641062125525,0.00284212,3746.0,3745.9,4.62169044]
[1641062125726,0.00284212,3746.0,3745.9,5.28903994]
[1641062125924,0.00284212,3746.0,3745.9,4.68903994]
[1641062126125,0.00284212,3746.0,3745.9,8.53903994]
[1641062127375,0.00284212,3746.0,3745.9,5.28903994]
[1641062128184,0.00284212,3746.0,3745.9,8.08903994]
[1641062128583,0.00284212,3746.0,3745.9,8.47203994]
[1641062128984,0.00284212,3746.0,3745.9,5.67203994]
[1641062129185,0.00284212,3746.0,3745.5,1.39419]
[1641062129186,0.00284212,3746.0,3744.5,0.383]
[1641062129386,0.01209061,3745.7,3744.8,1.33502]
[1641062129785,0.01209061,3745.7,3744.9,0.00341054]
[1641062130193,6.26261632,3745.0,3744.9,0.00341054]
[1641062130426,6.25,3744.9,3743.1,0.07920515]
[1641062130728,7.633,3744.9,3744.2,0.00397896]
[1641062130933,0.108,3744.8,3744.2,0.00397896]
[1641062131133,0.1056,3744.8,3744.2,0.00397896]
[1641062131333,0.80064768,3744.8,3744.2,0.00397896]
[1641062131533,0.79984768,3744.8,3744.2,0.00397896]
[1641062131732,7.58595,3744.3,3744.2,0.00397896]
[1641062132235,10.66034679,3744.3,3743.3,0.00909477]
[1641062133835,7.58595,3744.3,3743.3,0.00909477]
[1641062134039,7.68835,3744.3,3743.3,0.00909477]
[1641062134270,0.1008,3744.2,3743.2,0.0096632]
[1641062134571,0.66803,3743.8,3743.2,0.0096632]
[1641062135270,0.91211655,3743.7,3743.2,0.0096632]
[1641062135469,0.1016,3743.8,3743.2,0.0096632]
[1641062135671,0.66809,3743.8,3743.2,0.0096632]
[1641062135871,6.25,3743.4,3743.1,0.03886835]
[1641062136271,0.66808,3743.5,3743.1,0.03886835]
[1641062136471,1.66808,3743.5,3743.1,0.03886835]
[1641062136674,0.00113685,3743.4,3743.1,0.03886835]
[1641062137076,0.6681,3743.3,3743.1,0.03886835]
[1641062137280,9.27420432,3743.2,3743.1,0.03886835]
[1641062137676,10.27420432,3743.2,3743.1,0.03886835]
[1641062137936,5.01773569,3743.2,3743.1,0.03886835]
[1641062138728,0.66818,3742.9,3741.7,0.05380757]
[1641062138933,6.25,3743.1,3741.7,0.05380757]
[1641062138934,0.01205318,3742.4,3741.7,0.05380757]
[1641062139132,0.6683856,3742.2,3741.8,0.00795792]
[1641062139331,0.383,3742.1,3741.8,0.00795792]
[1641062139731,0.383,3742.1,3741.1,0.01193689]
[1641062139937,3.65,3742.0,3741.0,7.72243498]
[1641062140134,0.00511581,3742.0,3741.0,0.96049809]
[1641062140332,0.00454739,3741.9,3741.0,0.96049809]
[1641062140537,0.00454739,3741.9,3741.1,15.61259581]
[1641062140835,4.55550026,3743.1,3741.2,8.25373]
[1641062141033,4.55550026,3743.1,3742.1,0.66792]
[1641062141233,0.00454738,3742.6,3742.2,15.6]
[1641062141437,0.00454738,3742.6,3742.4,1.33583]
[1641062141670,1.30492232,3743.7,3742.5,1.05093]
[1641062141871,1.30492232,3743.7,3742.5,1.35093]
[1641062142075,0.01023162,3743.6,3742.6,0.3]
[1641062142271,0.01023162,3743.6,3742.7,0.383]
[1641062142474,0.00966319,3743.5,3742.7,0.383]
[1641062142873,0.00909477,3743.4,3742.7,0.383]
[1641062143077,0.00909477,3743.4,3742.9,0.66793]
[1641062143277,0.404018,3743.8,3743.0,0.383]
[1641062143278,0.00852635,3743.3,3743.0,0.383]
[1641062143675,0.00795792,3743.2,3743.0,0.383]
[1641062144075,0.0073895,3743.1,3743.0,0.383]
[1641062144982,2.7073895,3743.1,3743.0,0.383]
[1641062146232,2.7073895,3743.1,3742.3,0.87657292]
[1641062146434,2.7073895,3743.1,3742.1,0.383]
[1641062146631,0.00682108,3743.0,3742.1,0.383]
[1641062146833,0.00682108,3743.0,3741.4,2.7642012]
[1641062147032,0.00625265,3742.9,3741.0,1.33637]
[1641062147232,2.77045385,3742.9,3741.5,0.00170527]
[1641062147431,2.77045385,3742.9,3741.1,0.38697897]
[1641062147432,0.00568423,3742.8,3741.1,0.38697897]
[1641062147634,0.76694925,3742.1,3741.1,0.38697897]
[1641062148037,0.00113684,3742.0,3741.6,6.15]
[1641062149187,0.6684,3741.9,3741.6,6.15]
[1641062150187,0.6684,3741.9,3741.1,0.00397897]
[1641062150585,0.6684,3741.9,3740.6,0.00682109]
[1641062150586,2.90634579,3741.8,3740.6,0.00682109]
[1641062150782,3.00148112,3741.8,3740.6,0.00682109]
[1641062150984,0.00113684,3742.0,3740.6,0.00682109]
[1641062151182,2.91187728,3742.0,3740.6,0.00682109]
[1641062151381,2.93460654,3742.0,3740.6,0.00682109]
[1641062151680,2.93460654,3742.0,3740.4,0.30795793]
[1641062151681,0.00113684,3742.0,3740.4,0.30795793]
[1641062152082,0.00113684,3742.0,3740.5,0.00738951]
[1641062152281,2.99514629,3742.0,3740.5,0.00738951]
[1641062152681,0.00113684,3742.0,3740.5,0.00738951]
[1641062152933,0.00113684,3742.0,3740.7,0.66827]
[1641062153133,0.00113684,3742.0,3740.7,1.7194235]
[1641062153333,0.00113684,3742.0,3740.8,0.00568424]
[1641062153531,0.00113684,3742.0,3740.9,0.383]
[1641062153733,2.70113684,3742.0,3740.9,0.683]
[1641062153934,2.70113684,3742.0,3741.3,0.66821]
[1641062154132,2.70113684,3742.0,3741.4,0.383]
[1641062154332,2.70113684,3742.0,3741.4,0.3852737]
[1641062154536,2.70113684,3742.0,3741.5,0.00170527]
[1641062155535,3.03778443,3741.9,3741.5,0.00170527]
[1641062157474,3.03778443,3741.9,3741.5,0.7693855]
[1641062157877,3.03778443,3741.9,3741.6,0.38413685]
[1641062158683,3.03778443,3741.9,3741.6,2.01253685]
[1641062159382,3.03778443,3741.9,3741.6,2.66064585]
[1641062159583,2.70113684,3742.0,3741.6,2.96064585]
[1641062159781,2.70113684,3742.0,3741.6,2.29254585]
[1641062159980,2.70113684,3742.0,3741.8,0.668]
[1641062160181,2.70113684,3742.0,3741.9,6.483]
[1641062160431,2.70113684,3742.0,3741.9,6.783]
[1641062161033,2.70113684,3742.0,3741.9,6.483]
[1641062161232,2.70113684,3742.0,3741.9,6.783]
[1641062161435,2.70113684,3742.0,3741.9,6.483]
[1641062161631,2.70113684,3742.0,3741.9,0.383]
[1641062161832,2.70113684,3742.0,3741.9,3.083]
[1641062162032,2.70113684,3742.0,3741.9,0.383]
[1641062162833,2.70113684,3742.0,3741.6,0.70368633]
[1641062163536,5.73858643,3742.0,3741.6,0.70368633]
[1641062164181,2.70113684,3742.0,3741.6,0.70368633]
[1641062164378,2.70113684,3742.0,3741.6,1.37182633]
[1641062164780,3.03744959,3741.9,3741.7,0.683]
[1641062164979,3.03744959,3741.9,3741.7,2.88639633]
[1641062165180,2.70113684,3742.0,3741.8,6.25]
[1641062165383,0.05444048,3742.4,3742.0,6.25]
[1641062165585,0.05444048,3742.4,3741.9,5.17842142]
[1641062165586,0.05444048,3742.4,3742.3,10.633]
[1641062165887,0.05444048,3742.4,3742.3,24.166]
[1641062166084,0.05444048,3742.4,3742.3,24.466]
[1641062166291,4.048e-05,3742.4,3742.3,25.80176]
[1641062166585,4.048e-05,3742.4,3742.3,11.20176]
[1641062166784,4.048e-05,3742.4,3742.3,10.20176]
[1641062167088,4.048e-05,3742.4,3742.3,7.10176]
[1641062167384,1.30492232,3744.0,3743.1,0.66791]
[1641062167585,1.30492232,3743.9,3743.2,0.383]
[1641062167785,1.31572237,3743.9,3743.2,0.383]
[1641062168923,1.30492232,3743.8,3743.2,0.383]
[1641062169324,0.0096632,3743.7,3743.2,0.383]
[1641062169622,1.30492232,3743.8,3743.2,0.383]
[1641062169623,0.00909478,3743.6,3743.2,0.383]
[1641062169923,5.61972083,3744.5,3743.3,0.66787]
[1641062169924,0.00852635,3743.5,3743.3,0.66787]
[1641062170125,0.00852635,3743.5,3743.4,0.383]
[1641062170323,1.30492232,3743.7,3743.4,0.383]
[1641062170524,1.30492232,3743.9,3743.4,0.383]
[1641062170934,1.31572237,3743.9,3743.4,0.383]
[1641062171126,0.01080005,3743.9,3743.4,0.383]
[1641062171973,1.31572237,3743.9,3743.4,0.383]
[1641062173377,1.31572237,3743.9,3743.4,1.05086]
[1641062173580,0.01080005,3743.9,3743.4,1.05086]
[1641062173979,0.01080005,3743.9,3743.4,0.383]
[1641062174378,2.71080005,3743.9,3743.4,0.383]
[1641062175178,2.71080005,3743.9,3743.5,0.66784]
[1641062175428,2.71080005,3743.9,3743.6,2.84436246]
[1641062175626,2.71080005,3743.9,3743.6,0.683]
[1641062175826,2.71080005,3743.9,3743.6,3.38121568]
[1641062176026,2.71080005,3743.9,3743.7,0.3]
[1641062176228,2.71080005,3743.9,3743.8,7.96070426]
[1641062176428,2.71080005,3743.9,3743.8,8.26070426]
[1641062176626,2.71080005,3743.9,3743.8,9.26070426]
[1641062176834,2.71080005,3743.9,3743.8,4.51070426]
[1641062177029,2.71080005,3743.9,3743.8,1.683]
[1641062177230,2.71080005,3743.9,3743.8,0.683]
[1641062177429,2.71080005,3743.9,3743.8,0.633]
[1641062180473,2.71080005,3743.9,3743.8,4.383]
[1641062180674,2.71080005,3743.9,3743.8,0.633]
[1641062181477,2.71080005,3743.9,3743.8,4.583]
[1641062181875,2.71080005,3743.9,3743.8,3.22779865]
[1641062182075,2.71080005,3743.9,3743.8,0.633]
[1641062182276,2.71080005,3743.9,3743.8,3.0332391]
[1641062182676,2.71080005,3743.9,3743.8,3.21588951]
[1641062188978,2.71080005,3743.9,3743.8,3.06301086]
[1641062189182,2.71080005,3743.9,3743.8,0.383]
[1641062189380,2.71080005,3743.9,3743.5,2.05772236]
[1641062189779,0.01023163,3743.8,3743.5,2.05772236]
[1641062190179,0.0096632,3743.7,3743.5,2.05772236]
[1641062190453,0.00909478,3743.6,3743.5,2.05772236]
[1641062190654,0.00909478,3743.6,3743.5,0.05443746]
[1641062190854,0.01023163,3743.6,3743.5,0.05443746]
[1641062191265,0.01023163,3743.6,3743.2,0.66788]
[1641062191656,2.7,3743.9,3743.2,0.66788]
[1641062191657,0.00852635,3743.5,3743.2,0.66788]
[1641062191860,0.00852635,3743.5,3743.2,0.72187678]
[1641062192056,0.00795793,3743.4,3743.2,0.72187678]
[1641062192456,0.00738951,3743.3,3743.2,0.72187678]
[1641062193261,0.00738951,3743.3,3743.2,0.66788]
[1641062194066,0.00738951,3743.3,3743.0,2.13412132]
[1641062194485,0.00682108,3743.2,3743.0,2.13412132]
[1641062194884,0.00625266,3743.1,3743.0,2.13412132]
[1641062195083,0.00625266,3743.1,3743.0,1.33569]
[1641062196285,0.00625266,3743.1,3743.0,4.93661732]
[1641062196885,0.00625266,3743.1,3743.0,2.18661732]
[1641062197942,0.00625266,3743.1,3743.0,3.83744582]
[1641062198145,0.00625266,3743.1,3743.0,4.83744582]
[1641062198344,0.00625266,3743.1,3743.0,26.68744582]
[1641062198947,0.00625266,3743.1,3743.0,11.08744582]
[1641062200146,0.00625266,3743.1,3743.0,4.83744582]
[1641062201345,0.00625266,3743.1,3743.0,7.78744582]
[1641062203383,0.00625266,3743.1,3743.0,4.83744582]
[1641062204784,2.70625266,3743.1,3743.0,4.83744582]
[1641062205639,2.70625266,3743.1,3743.0,3.83744582]
[1641062210687,2.70625266,3743.1,3743.0,3.82573168]
[1641062213641,2.70625266,3743.1,3743.0,2.3865185]
[1641062214043,2.70625266,3743.1,3743.0,2.0035185]
[1641062214242,2.70625266,3743.1,3743.0,1.33569]
[1641062214443,2.70625266,3743.1,3742.8,0.66798]
[1641062214844,0.00568424,3743.0,3742.7,0.05399753]
[1641062215345,3.61005894,3743.1,3741.9,8.31674619]
[1641062215346,0.00511581,3742.9,3741.9,8.31674619]
[1641062215743,0.00454739,3742.8,3742.2,0.66809]
[1641062216145,0.00397897,3742.7,3742.2,0.66809]
[1641062216344,0.00397897,3742.7,3741.9,6.15]
[1641062216546,0.00215954,3742.6,3741.9,6.15]
[1641062216787,0.00215954,3742.6,3742.2,1.33608]
[1641062216986,2.7,3743.1,3742.3,0.66804]
[1641062216987,0.00159112,3742.5,3742.3,0.66804]
[1641062217288,2.7,3743.1,3742.4,3.23753068]
[1641062217486,3.03697927,3743.0,3742.5,1.33581]
[1641062217685,3.04141251,3743.0,3742.6,2.53895078]
[1641062217889,3.04141251,3743.0,3742.7,0.383]
[1641062218090,0.00443324,3743.0,3742.8,2.42737742]
[1641062218290,0.00443324,3743.0,3742.8,4.36303742]
[1641062218490,2.69516643,3743.1,3742.8,6.07243724]
[1641062218892,2.69516643,3743.1,3742.8,3.65432]
[1641062219091,2.69516643,3743.1,3742.9,0.66783]
[1641062219295,2.69516643,3743.1,3742.9,1.3356521]
[1641062221346,3.39265671,3743.1,3742.9,1.3356521]
[1641062224593,3.79300402,3743.1,3742.9,1.3356521]
[1641062228748,3.0367742,3743.0,3742.9,1.3356521]
[1641062230651,3.0367742,3743.0,3742.9,3.75974385]
[1641062230855,3.09551374,3743.1,3742.9,4.74274385]
[1641062231052,2.69516643,3743.1,3743.0,8.15995377]
[1641062231258,2.69516643,3743.1,3743.0,8.54295377]
[1641062231453,1.35891993,3743.8,3743.4,2.00314]
[1641062231692,0.05399761,3743.8,3743.5,2.85745916]
[1641062231893,4.55484594,3744.0,3743.7,4.4]
[1641062232093,4.55484594,3744.0,3743.8,2.99161604]
[1641062232292,1.30492232,3744.1,3743.9,2.49761879]
[1641062232494,1.30492232,3744.6,3744.0,1.35061]
[1641062232696,1.30492232,3744.6,3744.1,2.47659924]
[1641062232893,1.30492232,3744.6,3744.2,0.383]
[1641062233098,1.30492232,3745.1,3744.3,3.14251546]
[1641062233298,1.30492232,3745.1,3744.3,2.85797546]
[1641062233501,0.00625266,3744.8,3744.6,1.33511]
[1641062233699,0.00625266,3744.8,3744.7,2.85912079]
[1641062233899,3.03553558,3745.2,3744.7,2.85912079]
[1641062234097,3.03553558,3745.2,3744.7,4.19417079]
[1641062234298,0.00738951,3745.0,3744.7,1.71805]
[1641062234698,3.03553558,3745.2,3744.8,2.6701057]
[1641062234699,0.00682108,3744.9,3744.8,2.6701057]
[1641062234899,0.00682108,3744.9,3744.8,3.0531057]
[1641062236139,0.00682108,3744.9,3744.8,5.50688948]
[1641062236335,2.70682108,3744.9,3744.8,6.10688948]
[1641062236738,2.70682108,3744.9,3744.8,5.80688948]
[1641062236941,2.70682108,3744.9,3744.8,21.70688948]
[1641062237439,0.05399482,3745.4,3745.1,0.66741]
[1641062237640,0.05399482,3745.4,3745.2,19.37549303]
[1641062237840,0.05399482,3745.4,3745.3,15.6]
[1641062238039,6.15,3745.6,3745.3,16.283]
[1641062238241,0.00284212,3745.4,3745.3,16.283]